fUSD/lending_fUSD_20250113
["ID","MTS","AMOUNT","RATE_DAILY","PERIOD"]
[348738261,1736763041119,-758.87,9.999e-05,2]
[348738262,1736763041128,-215.73960793,9.999e-05,2]
[348738263,1736763041138,-543.13039207,9.999e-05,2]
[348738264,1736763041148,-758.87,9.999e-05,2]
[348738265,1736763041157,-758.87,9.999e-05,2]
[348738266,1736763041168,-758.87,9.999e-05,2]
[348738267,1736763041177,-758.87,9.999e-05,2]
[348738268,1736763041186,-758.87,9.999e-05,2]
[348738269,1736763041195,-758.87,9.999e-05,2]
[348738270,1736763041205,-758.87,9.999e-05,2]
[348738271,1736763041215,-758.87,9.999e-05,2]
[348738272,1736763041224,-758.87,9.999e-05,2]
[348738273,1736763041233,-758.87,9.999e-05,2]
[348738274,1736763041242,-758.87,9.999e-05,2]
[348738275,1736763041252,-758.87,9.999e-05,2]
[348738276,1736763041262,-758.87,9.999e-05,2]
[348738277,1736763041271,-758.87,9.999e-05,2]
[348738278,1736763041280,-758.87,9.999e-05,2]
[348738279,1736763041289,-758.87,9.999e-05,2]
[348738280,1736763041298,-758.87,9.999e-05,2]
[348738281,1736763041309,-758.87,9.999e-05,2]
[348738282,1736763041318,-758.93,9.999e-05,2]
[348738283,1736763041327,-182.0,0.0001,2]
[348738284,1736763041336,-1613.66900237,0.0001,2]
[348738285,1736763041344,-204.3662184,0.0001,2]
[348738286,1736763041354,-204.36621837,0.00010015,2]
[348738287,1736763041363,-5056.53355824,0.00010071,4]
[348738288,1736763041373,-1911.26716269,0.00010078,2]
[348738289,1736763041385,-2138.61039498,0.00010078,2]
[348738290,1736763041394,-500.0,0.00010079,2]
[348738291,1736763041403,-500.0,0.00010079,2]
[348738292,1736763041413,-626.34,0.00010079,2]
[348738293,1736763041422,-341.5433222,0.00010079,2]
[348738294,1736763041434,-438.3666778,0.00010079,2]
[348738295,1736763041443,-366.13431814,0.00010079,2]
[348738296,1736763041461,-417.43568186,0.00010079,2]
[348738297,1736763041471,-1500.03,0.00010079,2]
[348738298,1736763041480,-7.67207107,0.00010079,2]
[348738326,1736763042696,-281.96622018,9.985e-05,2]
[348738327,1736763042720,-218.03377982,9.985e-05,2]
[348738328,1736763042729,-152.29613418,0.00010079,2]
[348738330,1736763042744,-465.6175,0.00010079,2]
[348738331,1736763042755,-1384.81429475,0.00010079,2]
[348738332,1736763042764,-533.2,0.00010079,2]
[348738333,1736763042774,-500.0,0.00010079,2]
[348738334,1736763042783,-500.0,0.00010079,2]
[348738335,1736763042792,-336.13846698,0.00010079,2]
[348738336,1736763042846,-528.80153302,0.00010079,2]
[348738337,1736763042855,-500.0,0.00010079,2]
[348738338,1736763042904,-507.45,0.00010079,2]
[348738339,1736763042914,-510.01,0.00010079,2]
[348738340,1736763042923,-500.0,0.00010079,2]
[348738341,1736763042933,-1000.0,0.00010079,2]
[348738342,1736763042943,-500.0,0.00010079,2]
[348738343,1736763042952,-500.0,0.00010079,2]
[348738344,1736763042962,-900.71,0.00010079,2]
[348738345,1736763042971,-500.0,0.00010079,2]
[348738346,1736763042982,-204.36621837,0.00010131,2]
[348738347,1736763042991,-781.66,0.00010137,2]
[348738348,1736763043000,-204.36621837,0.00010246,2]
[348738349,1736763043011,-500.0,0.00010259,2]
[348738350,1736763043021,-500.0,0.00010259,2]
[348738351,1736763043030,-500.0,0.00010259,2]
[348738352,1736763043040,-500.0,0.00010259,2]
[348738353,1736763043049,-500.0,0.00010259,2]
[348738354,1736763043058,-500.0,0.00010259,2]
[348738355,1736763043068,-500.0,0.00010259,2]
[348738356,1736763043078,-500.0,0.00010259,2]
[348738357,1736763043087,-500.0,0.00010259,2]
[348738358,1736763043097,-500.0,0.00010259,2]
[348738359,1736763043107,-875.23,0.00010259,2]
[348738360,1736763043116,-531.13,0.00010259,2]
[348738361,1736763043125,-527.77,0.00010259,2]
[348738362,1736763043134,-362.53911055,0.00010259,2]
[348738363,1736763043146,-915.15088945,0.00010259,2]
[348738364,1736763043155,-500.0,0.00010259,2]
[348738365,1736763043164,-1237.63,0.00010259,2]
[348738366,1736763043173,-500.0,0.00010259,2]
[348738367,1736763043182,-507.54,0.00010259,2]
[348738368,1736763043191,-500.0,0.00010259,2]
[348738369,1736763043202,-500.0,0.00010259,2]
[348738370,1736763043211,-500.0,0.00010259,2]
[348738371,1736763043221,-500.0,0.00010259,2]
[348738372,1736763043230,-500.0,0.00010259,2]
[348738373,1736763043239,-500.0,0.00010259,2]
[348738374,1736763043249,-860.51,0.00010259,2]
[348738375,1736763043258,-580.33,0.00010259,2]
[348738376,1736763043267,-500.0,0.00010259,2]
[348738377,1736763043276,-500.0,0.0001026,2]
[348738378,1736763043286,-405.07,0.0001026,2]
[348738379,1736763043295,-507.11896708,0.0001026,2]
[348738380,1736763043304,-506.41436745,0.0001026,2]
[348738381,1736763043313,-500.0,0.0001026,2]
[348738382,1736763043322,-500.0,0.0001026,2]
[348738383,1736763043331,-500.0,0.0001026,2]
[348738384,1736763043341,-500.0,0.0001026,2]
[348738385,1736763043350,-500.0,0.0001026,2]
[348738386,1736763043359,-502.07311012,0.0001026,2]
[348738387,1736763043368,-500.0,0.0001026,2]
[348738388,1736763043378,-500.0,0.0001026,2]
[348738389,1736763043387,-500.0,0.0001026,2]
[348738390,1736763043396,-500.0,0.0001026,2]
[348738391,1736763043406,-500.0,0.0001026,2]
[348738392,1736763043415,-500.0,0.0001026,2]
[348738393,1736763043424,-500.0,0.0001026,2]
[348738394,1736763043434,-503.00310706,0.0001026,2]
[348738395,1736763043443,-500.0,0.0001026,2]
[348738396,1736763043452,-568.03258594,0.0001026,2]
[348738397,1736763043461,-500.0,0.0001026,2]
[348738398,1736763043470,-500.0,0.0001026,2]
[348738399,1736763043479,-505.68080658,0.0001026,2]
[348738400,1736763043488,-500.0,0.0001026,2]
[348738401,1736763043497,-557.51,0.0001026,2]
[348738402,1736763043508,-500.0,0.0001026,2]
[348738403,1736763043517,-500.0,0.0001026,2]
[348738404,1736763043526,-500.0,0.0001026,2]
[348738405,1736763043535,-500.0,0.0001026,2]
[348738406,1736763043544,-500.0,0.0001026,2]
[348738407,1736763043553,-189.73375683,0.0001026,2]
[348738408,1736763043562,-500.0,0.0001026,2]
[348738409,1736763043572,-500.0,0.0001026,2]
[348738410,1736763043581,-300.0,0.0001026,2]
[348738411,1736763043590,-509.81,0.0001026,2]
[348738412,1736763043599,-500.0,0.0001026,2]
[348738413,1736763043608,-500.0,0.0001026,2]
[348738414,1736763043617,-500.0,0.0001026,2]
[348738415,1736763043627,-1065.67,0.0001026,2]
[348738416,1736763043635,-500.0,0.0001026,2]
[348738417,1736763043644,-723.69,0.0001026,2]
[348738418,1736763043653,-500.0,0.0001026,2]
[348738419,1736763043663,-646.65,0.0001026,2]
[348738420,1736763043672,-644.65,0.0001026,2]
[348738421,1736763043682,-572.23,0.0001026,2]
[348738422,1736763043692,-500.0,0.0001026,2]
[348738423,1736763043701,-530.56,0.0001026,2]
[348738424,1736763043710,-500.0,0.00010353,2]
[348738425,1736763043720,-500.0,0.00010353,2]
[348738426,1736763043730,-626.34,0.00010353,2]
[348738427,1736763043739,-779.91,0.00010353,2]
[348738428,1736763043748,-783.57,0.00010353,2]
[348738429,1736763043758,-1500.03,0.00010353,2]
[348738430,1736763043767,-2010.4,0.00010353,2]
[348738431,1736763043777,-533.2,0.00010353,2]
[348738432,1736763043786,-500.0,0.00010353,2]
[348738433,1736763043795,-500.0,0.00010353,2]
[348738434,1736763043805,-864.94,0.00010353,2]
[348738435,1736763043814,-500.0,0.00010353,2]
[348738436,1736763043823,-507.45,0.00010353,2]
[348738437,1736763043832,-510.01,0.00010353,2]
[348738438,1736763043841,-608.94400928,0.00010353,2]
[348738439,1736763043850,-500.0,0.00010353,2]
[348738440,1736763043859,-900.71,0.00010353,2]
[348738441,1736763043868,-500.0,0.00010353,2]
[348738442,1736763043878,-204.36621837,0.00010362,2]
[348738443,1736763043887,-914.39,0.00010434,2]
[348738444,1736763043897,-204.36621837,0.00010477,2]
[348738445,1736763043906,-1000.0,0.00010497,2]
[348738446,1736763043915,-500.0,0.00010533,2]
[348738447,1736763043924,-500.0,0.00010533,2]
[348738448,1736763043937,-500.0,0.00010533,2]
[348738449,1736763043946,-500.0,0.00010533,2]
[348738450,1736763043956,-500.0,0.00010533,2]
[348738451,1736763043965,-500.0,0.00010533,2]
[348738452,1736763043973,-500.0,0.00010533,2]
[348738453,1736763043984,-500.0,0.00010533,2]
[348738454,1736763043997,-500.0,0.00010533,2]
[348738455,1736763044008,-875.23,0.00010533,2]
[348738456,1736763044018,-531.13,0.00010533,2]
[348738457,1736763044027,-527.77,0.00010533,2]
[348738458,1736763044037,-1277.69,0.00010533,2]
[348738459,1736763044046,-500.0,0.00010533,2]
[348738460,1736763044056,-1237.63,0.00010533,2]
[348738461,1736763044065,-500.0,0.00010533,2]
[348738462,1736763044075,-507.54,0.00010533,2]
[348738463,1736763044084,-500.0,0.00010533,2]
[348738464,1736763044093,-500.0,0.00010533,2]
[348738465,1736763044103,-500.0,0.00010533,2]
[348738466,1736763044111,-500.0,0.00010533,2]
[348738467,1736763044120,-860.51,0.00010533,2]
[348738468,1736763044132,-580.33,0.00010533,2]
[348738469,1736763044141,-188.29310439,0.00010533,2]
[348738470,1736763044151,-643.20391247,0.00010534,2]
[348738471,1736763044160,-500.0,0.00010534,2]
[348738472,1736763044170,-1065.67,0.00010534,2]
[348738473,1736763044179,-500.0,0.00010534,2]
[348738474,1736763044188,-723.69,0.00010534,2]
[348738475,1736763044197,-500.0,0.00010534,2]
[348738476,1736763044206,-646.65,0.00010534,2]
[348738477,1736763044216,-644.65,0.00010534,2]
[348738478,1736763044225,-572.23,0.00010534,2]
[348738479,1736763044235,-500.0,0.00010534,2]
[348738480,1736763044243,-530.56,0.00010534,2]
[348738481,1736763044253,-1004.79,0.00010535,2]
[348738482,1736763044264,-790.23134846,0.0001059,2]
[348738483,1736763044273,-204.36621837,0.00010592,2]
[348738484,1736763044283,-500.0,0.00010627,2]
[348738485,1736763044292,-500.0,0.00010627,2]
[348738486,1736763044301,-626.34,0.00010627,2]
[348738487,1736763044310,-779.91,0.00010627,2]
[348738488,1736763044320,-783.57,0.00010627,2]
[348738489,1736763044329,-1500.03,0.00010627,2]
[348738490,1736763044338,-2010.4,0.00010627,2]
[348738491,1736763044348,-2.83199497,0.00010627,2]
[348738492,1736763044360,-264.52331388,0.00010627,2]
[348738493,1736763044371,-265.84469115,0.00010627,2]
[348738494,1736763044381,-500.0,0.00010627,2]
[348738495,1736763044391,-500.0,0.00010627,2]
[348738496,1736763044400,-864.94,0.00010627,2]
[348738497,1736763044409,-500.0,0.00010627,2]
[348738498,1736763044418,-507.45,0.00010627,2]
[348738499,1736763044429,-510.01,0.00010627,2]
[348738500,1736763044438,-500.0,0.00010627,2]
[348738501,1736763044448,-900.71,0.00010627,2]
[348738502,1736763044457,-500.0,0.00010627,2]
[348738503,1736763044466,-204.36621837,0.00010708,2]
[348738504,1736763044476,-500.0,0.00010807,2]
[348738505,1736763044485,-500.0,0.00010807,2]
[348738506,1736763044494,-500.0,0.00010807,2]
[348738507,1736763044503,-500.0,0.00010807,2]
[348738508,1736763044515,-500.0,0.00010807,2]
[348738509,1736763044525,-500.0,0.00010807,2]
[348738510,1736763044534,-500.0,0.00010807,2]
[348738511,1736763044544,-500.0,0.00010807,2]
[348738512,1736763044553,-500.0,0.00010807,2]
[348738513,1736763044563,-875.23,0.00010807,2]
[348738514,1736763044572,-531.13,0.00010807,2]
[348738515,1736763044581,-527.77,0.00010807,2]
[348738516,1736763044590,-1277.69,0.00010807,2]
[348738517,1736763044600,-500.0,0.00010807,2]
[348738518,1736763044609,-1237.63,0.00010807,2]
[348738519,1736763044618,-500.0,0.00010807,2]
[348738520,1736763044627,-507.54,0.00010807,2]
[348738521,1736763044637,-198.75805012,0.00010807,2]
[348738522,1736763044649,-301.24194988,0.00010807,2]
[348738523,1736763044658,-500.0,0.00010807,2]
[348738524,1736763044667,-500.0,0.00010807,2]
[348738525,1736763044676,-500.0,0.00010807,2]
[348738526,1736763044686,-860.51,0.00010807,2]
[348738527,1736763044695,-1065.67,0.00010808,2]
[348738528,1736763044704,-500.0,0.00010808,2]
[348738529,1736763044713,-723.69,0.00010808,2]
[348738530,1736763044722,-500.0,0.00010808,2]
[348738531,1736763044731,-646.65,0.00010808,2]
[348738532,1736763044740,-644.65,0.00010808,2]
[348738533,1736763044749,-572.23,0.00010808,2]
[348738534,1736763044759,-500.0,0.00010808,2]
[348738535,1736763044768,-530.56,0.00010808,2]
[348738536,1736763044778,-204.36621837,0.00010823,2]
[348738537,1736763044787,-664.78890041,0.00010837,2]
[348738538,1736763044796,-500.0,0.00010901,2]
[348738539,1736763044806,-500.0,0.00010901,2]
[348738540,1736763044815,-626.34,0.00010901,2]
[348738541,1736763044824,-779.91,0.00010901,2]
[348738542,1736763044833,-783.57,0.00010901,2]
[348738543,1736763044842,-1500.03,0.00010901,2]
[348738544,1736763044851,-2010.4,0.00010901,2]
[348738545,1736763044860,-533.2,0.00010901,2]
[348738546,1736763044869,-500.0,0.00010901,2]
[348738547,1736763044878,-500.0,0.00010901,2]
[348738548,1736763044887,-864.94,0.00010901,2]
[348738549,1736763044897,-500.0,0.00010901,2]
[348738550,1736763044906,-507.45,0.00010901,2]
[348738551,1736763044915,-510.01,0.00010901,2]
[348738552,1736763044924,-500.0,0.00010901,2]
[348738553,1736763044938,-900.71,0.00010901,2]
[348738554,1736763044947,-500.0,0.00010901,2]
[348738555,1736763044957,-169.49,0.00010935,2]
[348738556,1736763044966,-204.36621837,0.00010938,2]
[348738557,1736763044977,-999.0,0.00010958,2]
[348738558,1736763044986,-4000.0,0.00010959,2]
[348738559,1736763044995,-490.0,0.00011,3]
[348738560,1736763045004,-1000.0,0.00011,2]
[348738561,1736763045015,-1000.0,0.00011,2]
[348738562,1736763045025,-1000.0,0.00011,2]
[348738563,1736763045034,-1000.0,0.00011,2]
[348738564,1736763045044,-1000.0,0.00011,2]
[348738565,1736763045053,-1000.0,0.00011,2]
[348738566,1736763045063,-1000.0,0.00011,3]
[348738567,1736763045072,-1000.0,0.00011,3]
[348738568,1736763045081,-1000.0,0.00011,3]
[348738569,1736763045090,-204.36621837,0.00011054,2]
[348738570,1736763045099,-500.0,0.00011081,2]
[348738571,1736763045109,-500.0,0.00011081,2]
[348738572,1736763045118,-500.0,0.00011081,2]
[348738573,1736763045127,-500.0,0.00011081,2]
[348738574,1736763045136,-500.0,0.00011081,2]
[348738575,1736763045145,-500.0,0.00011081,2]
[348738576,1736763045155,-500.0,0.00011081,2]
[348738577,1736763045164,-500.0,0.00011081,2]
[348738578,1736763045174,-500.0,0.00011081,2]
[348738579,1736763045184,-875.23,0.00011081,2]
[348738580,1736763045195,-531.13,0.00011081,2]
[348738581,1736763045204,-527.77,0.00011081,2]
[348738582,1736763045213,-1277.69,0.00011081,2]
[348738583,1736763045223,-500.0,0.00011081,2]
[348738584,1736763045232,-1237.63,0.00011081,2]
[348738585,1736763045241,-500.0,0.00011081,2]
[348738586,1736763045251,-507.54,0.00011081,2]
[348738587,1736763045262,-500.0,0.00011081,2]
[348738588,1736763045271,-500.0,0.00011081,2]
[348738589,1736763045281,-500.0,0.00011081,2]
[348738590,1736763045290,-500.0,0.00011081,2]
[348738591,1736763045300,-860.51,0.00011081,2]
[348738592,1736763045310,-1065.67,0.00011082,2]
[348738593,1736763045319,-500.0,0.00011082,2]
[348738594,1736763045329,-723.69,0.00011082,2]
[348738595,1736763045339,-500.0,0.00011082,2]
[348738596,1736763045349,-646.65,0.00011082,2]
[348738597,1736763045360,-644.65,0.00011082,2]
[348738598,1736763045369,-572.23,0.00011082,2]
[348738599,1736763045379,-500.0,0.00011082,2]
[348738600,1736763045390,-530.56,0.00011082,2]
[348738601,1736763045399,-167.13598397,0.00011099,2]
[348738602,1736763045409,-204.36621837,0.00011169,2]
[348738603,1736763045420,-500.0,0.00011175,2]
[348738604,1736763045429,-500.0,0.00011175,2]
[348738605,1736763045439,-626.34,0.00011175,2]
[348738606,1736763045448,-779.91,0.00011175,2]
[348738607,1736763045458,-783.57,0.00011175,2]
[348738608,1736763045467,-1500.03,0.00011175,2]
[348738609,1736763045476,-2010.4,0.00011175,2]
[348738610,1736763045486,-533.2,0.00011175,2]
[348738611,1736763045495,-500.0,0.00011175,2]
[348738612,1736763045504,-500.0,0.00011175,2]
[348738613,1736763045514,-864.94,0.00011175,2]
[348738614,1736763045524,-500.0,0.00011175,2]
[348738615,1736763045534,-507.45,0.00011175,2]
[348738616,1736763045543,-510.01,0.00011175,2]
[348738617,1736763045552,-500.0,0.00011175,2]
[348738618,1736763045561,-900.71,0.00011175,2]
[348738619,1736763045570,-500.0,0.00011175,2]
[348738620,1736763045581,-745.29,0.000112,2]
[348738621,1736763045590,-204.36621837,0.00011285,2]
[348738622,1736763045599,-500.0,0.00011355,2]
[348738623,1736763045608,-500.0,0.00011355,2]
[348738624,1736763045618,-500.0,0.00011355,2]
[348738625,1736763045627,-500.0,0.00011355,2]
[348738627,1736763045637,-500.0,0.00011355,2]
[348738629,1736763045646,-500.0,0.00011355,2]
[348738630,1736763045655,-500.0,0.00011355,2]
[348738632,1736763045665,-500.0,0.00011355,2]
[348738634,1736763045675,-500.0,0.00011355,2]
[348738636,1736763045684,-875.23,0.00011355,2]
[348738637,1736763045694,-531.13,0.00011355,2]
[348738638,1736763045704,-527.77,0.00011355,2]
[348738639,1736763045713,-1277.69,0.00011355,2]
[348738640,1736763045724,-500.0,0.00011355,2]
[348738641,1736763045733,-1237.63,0.00011355,2]
[348738642,1736763045743,-500.0,0.00011355,2]
[348738643,1736763045752,-507.54,0.00011355,2]
[348738644,1736763045763,-500.0,0.00011355,2]
[348738645,1736763045772,-500.0,0.00011355,2]
[348738646,1736763045782,-500.0,0.00011355,2]
[348738647,1736763045792,-500.0,0.00011355,2]
[348738648,1736763045802,-1065.67,0.00011356,2]
[348738649,1736763045811,-500.0,0.00011356,2]
[348738650,1736763045821,-723.69,0.00011356,2]
[348738651,1736763045830,-500.0,0.00011356,2]
[348738652,1736763045840,-646.65,0.00011356,2]
[348738653,1736763045851,-644.65,0.00011356,2]
[348738654,1736763045861,-572.23,0.00011356,2]
[348738655,1736763045871,-500.0,0.00011356,2]
[348738656,1736763045881,-530.56,0.00011356,2]
[348738657,1736763045890,-204.36621837,0.000114,2]
[348738658,1736763045900,-500.0,0.00011449,2]
[348738659,1736763045910,-500.0,0.00011449,2]
[348738660,1736763045921,-626.34,0.00011449,2]
[348738661,1736763045932,-779.91,0.00011449,2]
[348738662,1736763045945,-783.57,0.00011449,2]
[348738663,1736763045956,-1500.03,0.00011449,2]
[348738664,1736763045966,-2010.4,0.00011449,2]
[348738665,1736763045979,-533.2,0.00011449,2]
[348738666,1736763045989,-500.0,0.00011449,2]
[348738667,1736763045999,-500.0,0.00011449,2]
[348738668,1736763046014,-864.94,0.00011449,2]
[348738669,1736763046024,-500.0,0.00011449,2]
[348738670,1736763046034,-507.45,0.00011449,2]
[348738671,1736763046044,-510.01,0.00011449,2]
[348738672,1736763046054,-500.0,0.00011449,2]
[348738673,1736763046064,-900.71,0.00011449,2]
[348738674,1736763046074,-500.0,0.00011449,2]
[348738675,1736763046084,-162.05,0.00011479,2]
[348738676,1736763046095,-150.0,0.00011479,2]
[348738677,1736763046106,-150.0,0.00011479,2]
[348738678,1736763046116,-150.0,0.00011479,2]
[348738680,1736763046127,-150.0,0.00011479,2]
[348738682,1736763046137,-150.0,0.00011479,2]
[348738684,1736763046147,-150.0,0.00011479,2]
[348738686,1736763046157,-150.0,0.00011479,2]
[348738688,1736763046166,-150.0,0.00011479,2]
[348738690,1736763046176,-204.36621837,0.00011515,2]
[348738692,1736763046185,-1000.0,0.000116,2]
[348738694,1736763046195,-231.0,0.000116,2]
[348738696,1736763046205,-500.0,0.00011629,2]
[348738698,1736763046215,-500.0,0.00011629,2]
[348738700,1736763046224,-500.0,0.00011629,2]
[348738702,1736763046234,-500.0,0.00011629,2]
[348738705,1736763046244,-500.0,0.00011629,2]
[348738708,1736763046254,-500.0,0.00011629,2]
[348738712,1736763046266,-500.0,0.00011629,2]
[348738715,1736763046276,-500.0,0.00011629,2]
[348738718,1736763046285,-500.0,0.00011629,2]
[348738721,1736763046295,-875.23,0.00011629,2]
[348738723,1736763046305,-531.13,0.00011629,2]
[348738725,1736763046314,-527.77,0.00011629,2]
[348738726,1736763046324,-1277.69,0.00011629,2]
[348738728,1736763046333,-500.0,0.00011629,2]
[348738730,1736763046343,-1237.63,0.00011629,2]
[348738732,1736763046353,-500.0,0.00011629,2]
[348738733,1736763046363,-507.54,0.00011629,2]
[348738735,1736763046372,-500.0,0.00011629,2]
[348738737,1736763046382,-500.0,0.00011629,2]
[348738739,1736763046392,-500.0,0.00011629,2]
[348738742,1736763046401,-500.0,0.00011629,2]
[348738743,1736763046411,-1065.67,0.0001163,2]
[348738745,1736763046421,-500.0,0.0001163,2]
[348738747,1736763046431,-723.69,0.0001163,2]
[348738749,1736763046440,-500.0,0.0001163,2]
[348738751,1736763046450,-646.65,0.0001163,2]
[348738754,1736763046460,-644.65,0.0001163,2]
[348738756,1736763046470,-572.23,0.0001163,2]
[348738758,1736763046480,-500.0,0.0001163,2]
[348738760,1736763046489,-530.56,0.0001163,2]
[348738762,1736763046499,-204.36621837,0.00011631,2]
[348738764,1736763046508,-18040.23175528,0.00011637,2]
[348738765,1736763046518,-295.2812016,0.00011656,2]
[348738767,1736763046528,-1000.0,0.00011663,2]
[348738770,1736763046538,-500.0,0.00011671,2]
[348738772,1736763046548,-154.896,0.0001168,2]
[348738774,1736763046558,-500.0,0.00011723,2]
[348738776,1736763046567,-500.0,0.00011723,2]
[348738778,1736763046577,-626.34,0.00011723,2]
[348738780,1736763046587,-779.91,0.00011723,2]
[348738782,1736763046597,-783.57,0.00011723,2]
[348738784,1736763046607,-1500.03,0.00011723,2]
[348738786,1736763046617,-2010.4,0.00011723,2]
[348738788,1736763046627,-533.2,0.00011723,2]
[348738790,1736763046637,-500.0,0.00011723,2]
[348738792,1736763046647,-500.0,0.00011723,2]
[348738794,1736763046656,-864.94,0.00011723,2]
[348738796,1736763046666,-500.0,0.00011723,2]
[348738798,1736763046676,-507.45,0.00011723,2]
[348738800,1736763046685,-510.01,0.00011723,2]
[348738801,1736763046694,-500.0,0.00011723,2]
[348738803,1736763046704,-900.71,0.00011723,2]
[348738805,1736763046714,-500.0,0.00011723,2]
[348738807,1736763046723,-204.36621837,0.00011746,2]
[348738809,1736763046733,-3897.0,0.00011798,2]
[348738811,1736763046743,-1174.0,0.00011798,2]
[348738814,1736763046752,-150.0,0.00011798,2]
[348738815,1736763046763,-9629.0,0.00011798,2]
[348738817,1736763046772,-259.79,0.00011848,2]
[348738819,1736763046782,-4317.933,0.00011848,2]
[348738821,1736763046792,-204.36621837,0.00011862,2]
[348738823,1736763046802,-500.0,0.00011903,2]
[348738825,1736763046812,-500.0,0.00011903,2]
[348738827,1736763046822,-500.0,0.00011903,2]
[348738829,1736763046831,-500.0,0.00011903,2]
[348738832,1736763046842,-500.0,0.00011903,2]
[348738834,1736763046852,-500.0,0.00011903,2]
[348738835,1736763046862,-500.0,0.00011903,2]
[348738838,1736763046873,-500.0,0.00011903,2]
[348738840,1736763046883,-500.0,0.00011903,2]
[348738842,1736763046893,-875.23,0.00011903,2]
[348738844,1736763046903,-531.13,0.00011903,2]
[348738846,1736763046913,-527.77,0.00011903,2]
[348738848,1736763046923,-1277.69,0.00011903,2]
[348738850,1736763046936,-500.0,0.00011903,2]
[348738852,1736763046947,-1237.63,0.00011903,2]
[348738854,1736763046956,-500.0,0.00011903,2]
[348738856,1736763046966,-507.54,0.00011903,2]
[348738858,1736763046977,-500.0,0.00011903,2]
[348738860,1736763046987,-500.0,0.00011903,2]
[348738862,1736763046997,-500.0,0.00011903,2]
[348738863,1736763047008,-500.0,0.00011903,2]
[348738864,1736763047019,-1065.67,0.00011904,2]
[348738865,1736763047029,-500.0,0.00011904,2]
[348738866,1736763047039,-723.69,0.00011904,2]
[348738867,1736763047049,-164.44153613,0.00011904,2]
[348738868,1736763047059,-646.65,0.00011904,2]
[348738869,1736763047070,-644.65,0.00011904,2]
[348738870,1736763047080,-572.23,0.00011904,2]
[348738871,1736763047090,-500.0,0.00011904,2]
[348738872,1736763047099,-530.56,0.00011904,2]
[348738873,1736763047110,-1268.0,0.00011976,2]
[348738874,1736763047120,-2016.0,0.00011976,2]
[348738875,1736763047130,-635.0,0.00011976,2]
[348738876,1736763047140,-566.0,0.00011976,2]
[348738877,1736763047150,-150.0,0.00011976,2]
[348738878,1736763047160,-1860.0,0.00011976,2]
[348738879,1736763047170,-2944.0,0.00011976,2]
[348738880,1736763047180,-454.595,0.00011976,2]
[348738881,1736763047190,-204.36621837,0.00011977,2]
[348738882,1736763047201,-1548.0,0.00011997,2]
[348738883,1736763047211,-500.0,0.00011997,2]
[348738884,1736763047222,-500.0,0.00011997,2]
[348738885,1736763047232,-626.34,0.00011997,2]
[348738886,1736763047241,-779.91,0.00011997,2]
[348738887,1736763047252,-783.57,0.00011997,2]
[348738888,1736763047263,-1500.03,0.00011997,2]